fUST/lending_fUST_20240421
["ID","MTS","AMOUNT","RATE_DAILY","PERIOD"]
[323086368,1713636516311,1087.07513826,0.000211,2]
[323086369,1713636527696,300.0,0.000211,2]
[323086370,1713636529951,1674.84330151,0.000211,2]
[323086556,1713636638197,-519.62471906,0.00021237,2]
[323086558,1713636638207,-155.03751084,0.00021238,2]
[323086560,1713636638216,-300.0,0.00021238,2]
[323086562,1713636638226,-300.0,0.00021238,2]
[323086564,1713636638235,-521.01722183,0.00021239,2]
[323086566,1713636638245,-290.85863598,0.00021239,2]
[323086569,1713636638261,-178.72683445,0.00021239,2]
[323086571,1713636638270,-309.92815842,0.00021239,2]
[323086573,1713636638280,-203.55945047,0.00021239,2]
[323086575,1713636638289,-155.04002095,0.00021239,2]
[323086577,1713636638298,-470.75497787,0.0002124,2]
[323086579,1713636638307,-244.58345791,0.0002124,2]
[323086581,1713636638317,-161.90783343,0.0002124,2]
[323086583,1713636638326,-157.94184313,0.0002124,2]
[323086584,1713636638335,-203.91992593,0.0002124,2]
[323086585,1713636638350,-158.64056506,0.0002124,2]
[323086586,1713636638359,-152.62623642,0.00021446,2]
[323086587,1713636638368,-152.62623642,0.00021885,2]
[323086589,1713636638377,-271.258294,0.00021978,2]
[323086590,1713636638386,-152.62623642,0.00022323,2]
[323086591,1713636638395,-152.62623642,0.00022761,2]
[323086592,1713636638404,-420.0,0.00023097,2]
[323086593,1713636638413,-167.191502,0.00023101,2]
[323086594,1713636638422,-152.62623642,0.000232,2]
[323086595,1713636638432,-1087.07513826,0.00023361,2]
[323086596,1713636638441,-420.0,0.00023362,2]
[323086597,1713636638450,-152.62623642,0.00023638,2]
[323086598,1713636638459,-793.20649662,0.00023977,2]
[323086599,1713636638468,-152.62623642,0.00024076,2]
[323086600,1713636638477,-152.62623642,0.00024515,2]
[323086601,1713636638486,-433.63226807,0.00024797,2]
[323086602,1713636638495,-2000.0,0.00024799,2]
[323086603,1713636638504,-581.60822952,0.000248,2]
[323086604,1713636638514,-157.34901423,0.000248,2]
[323086605,1713636638523,-336.6,0.0002489,3]
[323086606,1713636638532,-582.04,0.0002489,3]
[323086607,1713636638542,-404.19,0.0002489,3]
[323086608,1713636638551,-408.64389017,0.00024897,2]
[323086609,1713636638560,-158.96316962,0.00024897,2]
[323086610,1713636638570,-407.0597859,0.00024897,2]
[323086611,1713636638579,-200.00990483,0.00024897,2]
[323086612,1713636638593,-1731.04891355,0.00024897,2]
[323086613,1713636638603,-272.42596856,0.00024898,2]
[323086614,1713636638612,-526.05116352,0.00024898,2]
[323086615,1713636638621,-2126.86587672,0.00024898,2]
[323086616,1713636638631,-350.12763647,0.00024898,2]
[323086617,1713636638640,-363.7490438,0.00024898,2]
[323086618,1713636638649,-72521.11659837,0.00024899,2]
[323086619,1713636638659,-44444.0,0.000249,2]
[323086620,1713636638669,-433.63226805,0.00024908,2]
[323086621,1713636638678,-152.62623642,0.00024953,2]
[323086622,1713636638688,-485.03,0.0002499,3]
[323086623,1713636638698,-1049.29304238,0.00024998,2]
[323086624,1713636638709,-135281.48088895,0.00025,5]
[323086625,1713636638724,-514.90477905,0.00025,5]
[323086626,1713636638736,-1239.69772113,0.00025,5]
[323086800,1713636646398,-1299.0,0.00025,5]
[323086802,1713636646410,-607.31293743,0.00025,5]
[323086825,1713636666941,154.95351395,0.00019998,2]
[323086885,1713637832724,-203.72048069,0.00022755,2]
[323086887,1713637832735,-703.72893944,0.00022756,2]
[323086978,1713637838450,-383.34619882,0.00022756,2]
[323086980,1713637838460,-152.62623642,0.00022777,2]
[323086982,1713637838471,-264.40216554,0.000229,2]
[323086984,1713637838480,-167.191502,0.00023064,2]
[323086986,1713637838489,-5727.4432483,0.00023232,2]
[323086988,1713637838498,-216.49147,0.00023305,2]
[323086990,1713637838508,-620.00057751,0.00024376,2]
[323086992,1713637838517,-300.0,0.00024799,2]
[323086994,1713637838526,-300.0,0.00024799,2]
[323086996,1713637838538,-155.90796291,0.000248,2]
[323086998,1713637838549,-289.0881787,0.000248,2]
[323087000,1713637838558,-2000.0,0.000248,2]
[323087002,1713637838566,-242.7967765,0.00024888,2]
[323087004,1713637838576,-242.7967765,0.00024891,2]
[323087006,1713637838585,-242.7967765,0.00024894,2]
[323087008,1713637838593,-242.7967765,0.00024897,2]
[323087010,1713637838602,-44444.0,0.000249,2]
[323087012,1713637838614,-242.7967765,0.000249,2]
[323087014,1713637838624,-417.67,0.00024988,3]
[323087016,1713637838633,-348.06,0.00024988,3]
[323087018,1713637838643,-228.08283221,0.00024997,2]
[323087020,1713637838651,-1049.29304337,0.00024998,2]
[323087022,1713637838660,-73763.30026279,0.00024998,2]
[323087024,1713637838668,-19424.37917561,0.00024999,2]
[323087026,1713637838678,-30380.79569912,0.00025,5]
[323087209,1713637840584,-11044.49308385,0.00025,5]
[323087464,1713639033111,-154.87609912,0.0002289,2]
[323087466,1713639033121,-154.87609912,0.00022891,2]
[323087468,1713639033130,-1087.07513826,0.00022892,2]
[323087470,1713639033140,-272.42596856,0.00022892,2]
[323087472,1713639033149,-526.05116352,0.00022893,2]
[323087474,1713639033158,-6025.8105541,0.00022898,2]
[323087476,1713639033167,-300.0,0.00022899,2]
[323087479,1713639033176,-300.0,0.00022899,2]
[323087481,1713639033186,-440.6702759,0.000229,2]
[323087483,1713639033195,-216.49147,0.00023836,2]
[323087485,1713639033204,-2000.0,0.00024699,2]
[323087487,1713639033213,-433.63226807,0.00024788,2]
[323087488,1713639033222,-181.860483,0.00024797,2]
[323087489,1713639033232,-274.26657934,0.00024799,2]
[323087491,1713639033241,-274.26657934,0.00024799,2]
[323087493,1713639033250,-274.26657934,0.000248,2]
[323087495,1713639033260,-274.26657934,0.000248,2]
[323087496,1713639033268,-433.63226805,0.00024839,2]
[323087498,1713639033277,-420.0,0.00024861,2]
[323087500,1713639033286,-404.74732808,0.00024884,2]
[323087502,1713639033296,-363.7490438,0.00024884,2]
[323087503,1713639033305,-55000.70071029,0.00024885,2]
[323087702,1713639038707,-1020.67911187,0.00024885,2]
[323087704,1713639038723,-16499.73677621,0.00024885,2]
[323087706,1713639038732,-333.68,0.00024888,3]
[323087708,1713639038742,-582.53,0.00024888,3]
[323087710,1713639038751,-485.44,0.00024888,3]
[323087712,1713639038761,-404.53,0.00024888,3]
[323087714,1713639038770,-433.63226805,0.00024889,2]
[323087716,1713639038779,-808.01963008,0.00024895,2]
[323087718,1713639038788,-604.49475011,0.00024895,2]
[323087720,1713639038798,-407.0597859,0.00024896,2]
[323087722,1713639038807,-200.00990483,0.00024896,2]
[323087724,1713639038816,-158.96316962,0.00024896,2]
[323087726,1713639038827,-1731.04891355,0.00024896,2]
[323087729,1713639038836,-408.64389017,0.00024896,2]
[323087731,1713639038846,-2126.86587672,0.00024897,2]
[323087733,1713639038855,-73763.30026279,0.00024898,2]
[323087735,1713639038865,-44444.0,0.000249,2]
[323087736,1713639038874,-203.47502261,0.00024989,2]
[323087739,1713639038884,-124774.11929581,0.00025,5]
[323087828,1713639043771,-337.11,0.0002499,3]
[323087830,1713639043780,-14479.86374578,0.00025,5]
[323088051,1713639096654,-1999.0,0.00025,10]
[323088080,1713640231775,-154.87609912,0.00022781,2]
[323088082,1713640231785,-773.03662032,0.00022781,2]
[323088163,1713640237767,-314.03851794,0.00022781,2]
[323088164,1713640237776,-519.62471906,0.00022782,2]
[323088165,1713640237785,-152.62623642,0.00022787,2]
[323088166,1713640237794,-381.91423912,0.000229,2]
[323088167,1713640237803,-167.191502,0.0002305,2]
[323088168,1713640237812,-167.191502,0.00023088,2]
[323088169,1713640237821,-5737.4432483,0.00023477,2]
[323088170,1713640237829,-152.62623642,0.00023491,2]
[323088171,1713640237838,-152.62623642,0.00024196,2]
[323088172,1713640237847,-620.00057751,0.00024315,2]
[323088173,1713640237856,-169.147374,0.00024658,2]
[323088174,1713640237866,-300.0,0.00024798,2]
[323088176,1713640237875,-300.0,0.00024799,2]
[323088177,1713640237884,-739.6173834,0.000248,2]
[323088179,1713640237893,-2000.0,0.000248,2]
[323088181,1713640237902,-274.26657937,0.0002489,2]
[323088183,1713640237911,-152.62623642,0.000249,2]
[323088184,1713640237920,-44444.0,0.000249,2]
[323088186,1713640237930,-173.4631406,0.00024995,2]
[323088187,1713640237939,-9859.38854908,0.00024996,2]
[323088189,1713640237948,-308.19902292,0.00024998,2]
[323088191,1713640237957,-154.95351395,0.00024998,2]
[323088193,1713640237966,-203.47502261,0.00024998,2]
[323088195,1713640237976,-408.29293655,0.00024998,2]
[323088197,1713640237985,-1049.29304238,0.00024998,2]
[323088199,1713640237994,-12297.67667901,0.00024998,2]
[323088200,1713640238003,-526.48121362,0.00024999,2]
[323088201,1713640238012,-264.77120299,0.00024999,2]
[323088202,1713640238021,-19424.37917561,0.00024999,2]
[323088203,1713640238031,-68006.28023072,0.00025,5]
[323088204,1713640238044,-564.67960507,0.00025,5]
[323088304,1713641163251,57035.86414187,0.0002769,120]
[323088305,1713641163272,18532.9522938,0.0002769,120]
[323088341,1713641431982,-1087.07513826,0.00022773,2]
[323088342,1713641431992,-272.42596856,0.00022774,2]
[323088343,1713641432001,-16.42662755,0.00022775,2]
[323088535,1713641437952,-172.65974239,0.00022775,2]
[323088536,1713641437962,-89.72297411,0.00022791,2]
[323088538,1713641437974,-62.90326231,0.00022791,2]
[323088539,1713641437983,-163.644784,0.00023318,2]
[323088540,1713641437992,-186.766708,0.00023583,2]
[323088541,1713641438001,-696.98567981,0.00024798,2]
[323088542,1713641438010,-568.83892578,0.00024799,2]
[323088543,1713641438029,-1431.16107422,0.00024799,2]
[323088544,1713641438038,-300.0,0.00024888,2]
[323088545,1713641438047,-300.0,0.00024888,2]
[323088546,1713641438056,-221.31,0.0002489,3]
[323088547,1713641438065,-31279.26650148,0.00024897,2]
[323088548,1713641438074,-408.29293655,0.00024898,2]
[323088549,1713641438083,-308.19902292,0.00024898,2]
[323088550,1713641438092,-203.47502261,0.00024898,2]
[323088551,1713641438101,-154.95351395,0.00024898,2]
[323088552,1713641438110,-155.02426368,0.00024898,2]
[323088553,1713641438119,-11585.17810216,0.00024898,2]
[323088554,1713641438128,-676.00874118,0.00024898,2]
[323088555,1713641438137,-612.24143816,0.00024898,2]
[323088556,1713641438146,-156.84586358,0.00024898,2]
[323088557,1713641438155,-720.66599539,0.00024898,2]
[323088558,1713641438164,-883.09222158,0.00024898,2]
[323088559,1713641438269,-173.4631406,0.00024898,2]
[323088560,1713641438279,-526.48121362,0.00024899,2]
[323088561,1713641438288,-19424.37917561,0.00024899,2]
[323088562,1713641438297,-5000.0,0.000249,2]
[323088563,1713641438306,-44444.0,0.000249,2]
[323088564,1713641438316,-237.4180498,0.000249,2]
[323088565,1713641438325,-153.0,0.000249,2]
[323088566,1713641438334,-37918.82368937,0.00025,5]
[323088643,1713641440205,-16611.81035322,0.00025,5]
[323088650,1713641440259,-4076.3447162,0.00025,5]
[323089048,1713642632180,-1087.07513826,0.00022879,2]
[323089049,1713642632191,-272.42596856,0.0002288,2]
[323089050,1713642632201,-154.87609912,0.00022899,2]
[323089051,1713642632211,-304.60949274,0.000229,2]
[323089052,1713642632222,-167.191502,0.00023137,2]
[323089053,1713642632231,-167.191502,0.00023574,2]
[323089054,1713642632240,-207.91801848,0.00024254,2]
[323089057,1713642632252,-412.08201039,0.00024254,2]
[323089058,1713642632261,-300.0,0.00024657,2]
[323089059,1713642632270,-300.0,0.00024657,2]
[323089060,1713642632279,-74.24176641,0.00024658,10]
[323089107,1713642643386,-572.73077365,0.00024658,10]
[323089238,1713643435118,271.258294,0.00020451,2]
[323089256,1713643536956,4237.83384325,0.00020451,10]
[323089257,1713643554965,610.70338525,0.00020451,10]
[323089258,1713643595505,330.37774154,0.000189,2]
[323089358,1713643832387,-310.0,0.00021144,2]
[323089360,1713643832423,-98.64389017,0.00021144,2]
[323089362,1713643832479,-203.72048069,0.00021144,2]
[323089364,1713643832527,-519.62471906,0.00021145,2]
[323089366,1713643832565,-931.00570305,0.00021146,2]
[323089368,1713643832577,-156.06943521,0.00021146,2]
[323089370,1713643832588,-677.63819334,0.00021146,2]
[323089372,1713643832598,-604.49475011,0.00021151,2]
[323089374,1713643832608,-152.62623642,0.00021152,2]
[323089376,1713643832618,-167.191502,0.00021263,2]
[323089378,1713643832628,-209.72088616,0.00021432,2]
[323089380,1713643832638,-209.72088612,0.00021433,2]
[323089382,1713643832647,-209.72088612,0.00021433,2]
[323089383,1713643832658,-209.72088612,0.00021434,2]
[323089385,1713643832667,-209.72088612,0.00021434,2]
[323089387,1713643832682,-12.14571035,0.00021436,2]
[323089389,1713643832695,-671.33001715,0.00021436,2]
[323089391,1713643832708,-95.49426407,0.00021436,2]
[323089393,1713643832718,-404.74732808,0.0002153,2]
[323089395,1713643832729,-363.7490438,0.0002153,2]
[323089397,1713643832739,-309.92815842,0.00021531,2]
[323089399,1713643832749,-155.04002095,0.00021531,2]
[323089401,1713643832758,-73317.71481557,0.00021531,2]
[323089403,1713643832775,-373.13614247,0.00021531,2]
[323089555,1713643838384,-319.88118119,0.00021531,2]
[323089557,1713643838395,-5989.26786077,0.00021531,2]
[323089559,1713643838404,-178.72683445,0.00021532,2]
[323089561,1713643838414,-31279.26650148,0.00021532,2]
[323089563,1713643838423,-300.0,0.00021532,2]
[323089565,1713643838434,-300.0,0.00021532,2]
[323089567,1713643838443,-72521.11659837,0.00021532,2]
[323089569,1713643838452,-157.94184313,0.00021534,2]
[323089571,1713643838461,-161.90783343,0.00021534,2]
[323089573,1713643838470,-203.91992593,0.00021534,2]
[323089575,1713643838479,-158.64056506,0.00021534,2]
[323089577,1713643838487,-470.75497787,0.00021534,2]
[323089579,1713643838496,-6682.5223584,0.00021551,2]
[323089581,1713643838506,-152.62623642,0.00021673,2]
[323089583,1713643838514,-152.62623642,0.00022194,2]
[323089585,1713643838524,-9859.38854908,0.0002254,2]
[323089587,1713643838532,-156.84586358,0.00022551,2]
[323089589,1713643838541,-155.02426368,0.00022551,2]
[323089591,1713643838550,-154.95351395,0.00022551,2]
[323089593,1713643838559,-200.00990483,0.00022551,2]
[323089595,1713643838568,-2126.86587672,0.00022551,2]
[323089597,1713643838578,-1731.04891355,0.00022551,2]
[323089599,1713643838587,-676.00874118,0.00022551,2]
[323089601,1713643838596,-808.01963008,0.00022551,2]
[323089603,1713643838606,-152.62623642,0.00022715,2]
[323089605,1713643838615,-152.62623642,0.00023237,2]
[323089607,1713643838624,-420.0,0.00023409,2]
[323089609,1713643838633,-179.36474,0.00023496,2]
[323089611,1713643838642,-420.0,0.00023685,2]
[323089613,1713643838651,-152.62623642,0.00023758,2]
[323089615,1713643838660,-151.0,0.00023878,2]
[323089617,1713643838669,-389.566227,0.00023878,2]
[323089619,1713643838679,-389.566227,0.00023878,2]
[323089621,1713643838688,-151.0,0.00023878,2]
[323089623,1713643838697,-10000.00000001,0.00023878,2]
[323089625,1713643838707,-153.0,0.00023878,2]
[323089627,1713643838716,-153.0,0.00023878,2]
[323089629,1713643838725,-153.0,0.00023878,2]
[323089631,1713643838734,-153.0,0.00023878,2]
[323089633,1713643838743,-153.0,0.00023878,2]
[323089635,1713643838752,-153.0,0.00023878,2]
[323089637,1713643838762,-330.37774154,0.000239,2]
[323089639,1713643838771,-152.62623642,0.00024279,2]
[323089641,1713643838780,-169.147374,0.00024658,2]
[323089643,1713643838789,-7302.7894778,0.00024658,10]
[323089645,1713643838798,-151.0,0.00024658,2]
[323089647,1713643838808,-306.0,0.000247,2]
[323089649,1713643838817,-153.0,0.000247,2]
[323089651,1713643838826,-153.0,0.000247,2]
[323089653,1713643838835,-306.0,0.000248,2]
[323089655,1713643838844,-151.0,0.000248,2]
[323089657,1713643838853,-151.0,0.000248,2]
[323089660,1713643838863,-152.62623642,0.000248,2]
[323089661,1713643838872,-1789.51641,0.000248,2]
[323089663,1713643838881,-1789.51641,0.000248,2]
[323089665,1713643838892,-283.76241,0.000248,2]
[323089667,1713643838901,-158.901794,0.000248,2]
[323089669,1713643838910,-283.76241,0.000248,2]
[323089671,1713643838920,-217.95143474,0.00024898,2]
[323089674,1713643838930,-526.48121362,0.00024898,2]
[323089676,1713643838940,-308.19902292,0.00024898,2]
[323089678,1713643838950,-158.96316962,0.00024898,2]
[323089680,1713643838959,-407.0597859,0.00024899,2]
[323089682,1713643838969,-612.24143816,0.00024899,2]
[323089684,1713643838978,-883.09222158,0.00024899,2]
[323089686,1713643838987,-313.815032,0.00024899,2]
[323089688,1713643838996,-313.815032,0.00024899,2]
[323089690,1713643839006,-151.0,0.00024899,2]
[323089691,1713643839015,-389.566227,0.00024899,2]
[323089693,1713643839030,-389.566227,0.00024899,2]
[323089695,1713643839045,-151.0,0.00024899,2]
[323089698,1713643839055,-5000.0,0.000249,2]
[323089700,1713643839064,-252.874637,0.000249,2]
[323089702,1713643839073,-151.0,0.000249,2]
[323089704,1713643839082,-151.0,0.000249,2]
[323089706,1713643839091,-151.0,0.000249,2]
[323089708,1713643839100,-313.815032,0.000249,2]
[323089709,1713643839110,-313.815032,0.000249,2]
[323089711,1713643839119,-44444.0,0.000249,2]
[323089713,1713643839128,-151.0,0.000249,2]
[323089715,1713643839137,-151.0,0.000249,2]
[323089717,1713643839147,-151.0,0.000249,2]
[323089719,1713643839155,-1789.51641,0.000249,2]
[323089721,1713643839164,-1789.51641,0.000249,2]
[323089723,1713643839173,-283.76241,0.000249,2]
[323089726,1713643839184,-283.76241,0.000249,2]
[323089728,1713643839194,-151.0,0.000249,2]
[323089729,1713643839203,-389.566227,0.000249,2]
[323089731,1713643839212,-389.566227,0.000249,2]
[323089733,1713643839221,-1049.29304238,0.00024998,2]
[323089736,1713643839235,-188.85316358,0.00024999,2]
[323089737,1713643839244,-47826.31105166,0.00025,5]
[323089740,1713643839256,-303.80065159,0.00025,5]
[323089742,1713643839267,-1544.13388645,0.00025,5]
[323089744,1713643839279,-24670.86943352,0.00025,5]
[323090450,1713643846548,-289.0881787,0.00021434,2]
[323090452,1713643846557,-408.29293655,0.00021529,2]
[323090454,1713643846566,-179.74119241,0.00021529,2]
[323090456,1713643846575,-200.89265958,0.00021529,2]
[323091946,1713645032541,-152.62623642,0.00021428,2]
[323091947,1713645032551,-1087.07513826,0.00021527,2]
[323091948,1713645032560,-300.0,0.00021528,2]
[323091949,1713645032569,-300.0,0.00021528,2]
[323091950,1713645032578,-203.31399239,0.00021529,2]
[323091951,1713645032587,-287.61125996,0.00021529,2]
[323091952,1713645032596,-4123.5807583,0.00021529,2]
[323091953,1713645032611,-663.58200004,0.00021529,2]
[323092036,1713645038601,-323.785,0.00021529,2]
[323092038,1713645038612,-10946.25075824,0.00021529,2]
[323092040,1713645038622,-459.87179592,0.00021778,2]
[323092042,1713645038634,-6672.5223584,0.00021779,2]
[323092043,1713645038643,-152.62623642,0.00022007,2]
[323092045,1713645038653,-152.62623642,0.00022585,2]
[323092047,1713645038662,-220.25182769,0.000229,2]
[323092049,1713645038671,-173.278121,0.00022926,2]
[323092051,1713645038680,-182.84438624,0.00022974,2]
[323092053,1713645038688,-5000.0,0.00023,2]
[323092055,1713645038698,-1943.2804486,0.00023074,2]
[323092057,1713645038709,-152.62623642,0.00023164,2]
[323092060,1713645038719,-420.0,0.00023405,2]
[323092061,1713645038729,-420.0,0.00023681,2]
[323092064,1713645038738,-152.62623642,0.00023743,2]
[323092065,1713645038747,-967.83526257,0.00023748,2]
[323092067,1713645038757,-182.84438622,0.00023937,2]
[323092071,1713645038766,-620.00055008,0.00024194,2]
[323092073,1713645038776,-152.62623642,0.00024321,2]
[323092077,1713645038786,-7302.7894778,0.00024658,10]
[323092080,1713645038796,-337.26954183,0.00024798,2]
[323092081,1713645038805,-2000.0,0.000248,2]
[323092083,1713645038815,-337.26954182,0.00024849,2]
[323092085,1713645038825,-581.95,0.0002489,3]
[323092088,1713645038835,-484.96,0.0002489,3]
[323092090,1713645038844,-181.860483,0.00024898,2]
[323092092,1713645038853,-883.09222158,0.00024898,2]
[323092094,1713645038863,-526.48121362,0.00024898,2]
[323092095,1713645038872,-612.24143816,0.00024898,2]
[323092098,1713645038886,-407.0597859,0.00024898,2]
[323092099,1713645038896,-308.19902292,0.00024898,2]
[323092101,1713645038906,-158.96316962,0.00024898,2]
[323092104,1713645038915,-200.00990483,0.00024898,2]
[323092106,1713645038924,-2126.86587672,0.00024898,2]
[323092107,1713645038933,-48.57106548,0.00024898,2]
[323092110,1713645038945,-1682.47784807,0.00024898,2]
[323092112,1713645038955,-808.01963008,0.00024898,2]
[323092114,1713645038963,-156.84586358,0.00024898,2]
[323092116,1713645038973,-676.00874118,0.00024898,2]
[323092117,1713645038981,-155.02426368,0.00024898,2]
[323092119,1713645038991,-217.95143474,0.00024898,2]
[323092120,1713645039002,-154.95351395,0.00024898,2]
[323092122,1713645039011,-203.91992593,0.00024898,2]
[323092123,1713645039020,-157.94184313,0.00024898,2]
[323092125,1713645039030,-158.64056506,0.00024898,2]
[323092127,1713645039039,-161.90783343,0.00024898,2]
[323092128,1713645039048,-470.75497787,0.00024898,2]
[323092129,1713645039058,-154.87214684,0.00024898,2]
[323092130,1713645039067,-154.86062544,0.00024898,2]
[323092131,1713645039076,-173.4631406,0.00024899,2]
[323092132,1713645039085,-44444.0,0.000249,2]
[323092133,1713645039095,-152.62623642,0.000249,2]
[323092134,1713645039104,-337.26954182,0.000249,2]
[323092135,1713645039113,-182.84438622,0.000249,2]
[323092136,1713645039123,-1049.29304337,0.00024997,2]
[323092137,1713645039133,-454.71357712,0.00024998,2]
[323092138,1713645039142,-188.85316358,0.00024998,2]
[323092139,1713645039151,-18403.70006374,0.00024999,2]
[323092140,1713645039160,-10311.84507837,0.00024999,2]
[323092141,1713645039170,-80451.1230497,0.00025,5]
[323092142,1713645039182,-7717.07775507,0.00025,5]
[323092143,1713645039196,-123070.57688808,0.00025,5]
[323092152,1713645042076,-150.0,0.000229,2]
[323092153,1713645042086,-10000.00000001,0.00023878,2]
[323092154,1713645042096,-404.14,0.00024989,3]
[323092155,1713645042105,-58097.3371954,0.00025,5]
[323092183,1713645043798,-500.0,0.00025,5]
[323092186,1713645043809,-12167.21951027,0.00025,5]
[323092325,1713645508895,150.0,0.00025,120]
[323092332,1713645982824,236.29204197,0.00019,2]
[323092333,1713646013613,16076.25580417,0.00019,2]
[323092334,1713646015369,154.92253873,0.00019,2]
[323092335,1713646020948,692.13548975,0.00019,2]
[323092336,1713646021518,154.92253873,0.00019,2]
[323092337,1713646022636,197.49701762,0.00019,2]
[323092338,1713646022881,385.66913865,0.00019,2]
[323092339,1713646024686,155.04330673,0.00019,2]
[323092340,1713646029581,16076.25580417,0.00019,2]
[323092341,1713646031862,154.86062544,0.00019,2]
[323092342,1713646035322,154.92253873,0.00019,2]
[323092343,1713646037492,154.92253873,0.00019,2]
[323092344,1713646038892,692.13548975,0.00019,2]
[323092345,1713646044640,154.92253873,0.00019,2]
[323092346,1713646045011,385.66913865,0.00019,2]
[323092347,1713646045413,198.60458448,0.00019,2]
[323092348,1713646046610,154.86062544,0.00019,2]
[323092349,1713646053286,235.12902508,0.00019,2]
[323092350,1713646054091,281.85116138,0.00019,2]
[323092351,1713646054854,692.13548975,0.00019,2]
[323092352,1713646055304,154.92253873,0.00019,2]
[323092353,1713646057586,16076.25580417,0.00019,2]
[323092354,1713646057856,154.86062544,0.00019,2]
[323092355,1713646058875,385.66913865,0.00019,2]
[323092356,1713646064616,154.86062544,0.00019,2]
[323092357,1713646064656,158.77014744,0.00019,2]
[323092358,1713646070059,195.04804089,0.00019,2]
[323092359,1713646073313,154.92253873,0.00019,2]
[323092360,1713646073627,16076.25580417,0.00019,2]
[323092361,1713646075861,154.86062544,0.00019,2]
[323092362,1713646076854,692.13548975,0.00019,2]
[323092363,1713646078875,385.66913865,0.00019,2]
[323092364,1713646083233,154.86062544,0.00019,2]
[323092365,1713646091596,5846.30006496,0.00019,2]
[323092366,1713646091623,10229.95573921,0.00019,2]
[323092367,1713646094066,195.04804089,0.00019,2]
[323092368,1713646095304,154.92253873,0.00019,2]
[323092369,1713646096862,382.9426367,0.00019,2]
[323092370,1713646097857,154.86062544,0.00019,2]
[323092371,1713646098612,155.1082786,0.00019,2]
[323092372,1713646098862,444.07797533,0.00019,2]
[323092373,1713646109595,6249.20826093,0.00019,2]
[323092374,1713646112036,195.04804089,0.00019,2]
[323092375,1713646113855,154.86062544,0.00019,2]
[323092376,1713646116608,154.92253873,0.00019,2]
[323092377,1713646121304,154.86062544,0.00019,2]
[323092378,1713646133860,154.86062544,0.00019,2]
[323092379,1713646134081,265.7919391,0.00019,2]
[323092380,1713646138794,220.62938936,0.00019,2]
[323092381,1713646141302,154.86062544,0.00019,2]
[323092382,1713646153881,154.86062544,0.00019,2]
[323092383,1713646159306,154.86062544,0.00019,2]
[323092384,1713646175876,186.48799948,0.00019,2]
[323092385,1713646177307,282.93123499,0.00019,2]
[323092486,1713646237821,-189.08636994,0.00022771,2]
[323092488,1713646237833,-471.46116533,0.00022772,2]
[323092490,1713646237844,-152.62623642,0.000228,2]
[323092492,1713646237855,-150.0,0.000229,2]
[323092494,1713646237867,-167.191502,0.00023586,2]
[323092496,1713646237876,-300.0,0.00024797,2]
[323092498,1713646237887,-5456.52078879,0.00024798,2]
[323092500,1713646237897,-300.0,0.00024798,2]
[323092502,1713646237907,-182.84438622,0.00024799,2]
[323092504,1713646237918,-5000.0,0.00024799,2]
[323092506,1713646237927,-2000.0,0.000248,2]
[323092508,1713646237936,-306.0,0.000248,2]
[323092511,1713646237947,-264.05985318,0.00024873,2]
[323092512,1713646237957,-10000.00000001,0.00024879,2]
[323092515,1713646237967,-10000.00000001,0.00024879,2]
[323092516,1713646237977,-336.78,0.0002489,3]
[323092518,1713646237987,-280.65,0.0002489,3]
[323092521,1713646237997,-233.87,0.0002489,3]
[323092522,1713646238007,-454.71357712,0.00024898,2]
[323092524,1713646238017,-10311.84507837,0.00024898,2]
[323092526,1713646238027,-1143.54759865,0.00024898,2]
[323092529,1713646238038,-155.02426368,0.00024898,2]
[323092531,1713646238048,-158.64056506,0.00024898,2]
[323092533,1713646238057,-808.01963008,0.00024898,2]
[323092535,1713646238066,-676.00874118,0.00024898,2]